[Event "Marshall CC FIDE Premier April 2024"]
[Site "New York"]
[Date "2024.04.13"]
[Round "2.1"]
[White "Meduri, Aakaash"]
[Black "Huston, Gus"]
[Result "0-1"]
[ECO "A20"]
[WhiteElo "1962"]
[BlackElo "2401"]
[Annotator "RC"]
[PlyCount "120"]
[EventDate "2024.02.02"]
[EventType "swiss"]
[EventCountry "USA"]
[SourceTitle "playchess.com"]
[Source "ChessBase"]
[SourceQuality "1"]
[TimeControl "5400+30"]

1. c4 {[%emt 0:19:36]} Nf6 {[%emt 0:00:47]} 2. g3 {[%emt 0:00:15]} e5 {[%emt 0:00:17]} 3. Bg2 {[%emt 0:00:10]} c6 {[%emt 0:00:05]} 4. d4 {[%emt 0:00:13]} e4 {[%emt 0:00:25]} 5. d5 {[%emt 0:00:11]} Bb4+ {[%emt 0:02:02]} 6. Bd2 {[%emt 0:06:26]} Qe7 {[%emt 0:00:01]} 7. Bxb4 {[%emt 0:01:55]} Qxb4+ {[%emt 0:00:03]} 8. Qd2 {[%emt 0:00:25]} Qxc4 {[%emt 0:00:56]} 9. Nc3 {[%emt 0:00:58]} cxd5 {[%emt 0:03:42]} 10. Rc1 {[%emt 0:00:32]} O-O {[%emt 0:02:24]} 11. Nh3 {[%emt 0:07:12]} Nc6 {[%emt 0:11:56]} 12. O-O {[%emt 0:01:51]} d4 {[%emt 0:03:41]} 13. Nxe4 {[%emt 0:00:48]} Nxe4 {[%emt 0:00:05]} 14. Bxe4 {[%emt 0:00:10]} Qxa2 {[%emt 0:00:06]} 15. Qf4 {[%emt 0:09:29]} Qa5 {[%emt 0:04:25]} 16. Ng5 {[%emt 0:09:22]} h6 {[%emt 0:01:29]} 17. Nf3 {[%emt 0:00:50]} d5 {[%emt 0:06:30]} 18. Bb1 {[%emt 0:02:45]} Qb4 {[%emt 0:00:10]} 19. Rfd1 {[%emt 0:03:03]} Qxb2 {[%emt 0:03:24]} 20. g4 {[%emt 0:02:56]} Qb4 {[%emt 0:04:28]} 21. Nxd4 {[%emt 0:02:41]} Nxd4 {[%emt 0:01:24]} 22. Rxd4 {[%emt 0:00:04]} Qe7 {[%emt 0:00:13]} 23. e3 {[%emt 0:04:21]} Be6 {[%emt 0:03:42]} 24. Rc7 {[%emt 0:00:33]} Qg5 {[%emt 0:05:30]} 25. Qg3 {[%emt 0:00:40]} Rac8 {[%emt 0:05:50]} 26. h4 {[%emt 0:01:10]} Qd8 {[%emt 0:00:08]} 27. Rxb7 {[%emt 0:00:28]} Rb8 {[%emt 0:00:28]} 28. Rdb4 {[%emt 0:00:53]} Rxb7 {[%emt 0:00:08]} 29. Rxb7 {[%emt 0:00:10]} Qc8 {[%emt 0:00:34]} 30. Rc7 {[%emt 0:03:21]} Qb8 {[%emt 0:00:12]} 31. Bf5 {[%emt 0:00:51]} Rc8 {[%emt 0:01:41]} 32. Rxc8+ {[%emt 0:00:36]} Qxc8 {[%emt 0:00:01]} 33. Bxe6 {[%emt 0:01:50]} Qxe6 {[%emt 0:02:59]} 34. Qb8+ {[%emt 0:03:19]} Kh7 {[%emt 0:00:01]} 35. Qxa7 {[%emt 0:00:24]} Qxg4+ {[%emt 0:00:02]} 36. Kf1 {[%emt 0:00:17]} f6 {[%emt 0:01:19]} 37. Qf7 {[%emt 0:01:07]} Qc4+ {[%emt 0:00:15]} 38. Ke1 {[%emt 0:00:40]} Qxh4 {[%emt 0:00:58]} 39. Qxd5 {[%emt 0:00:11]} Qg4 {[%emt 0:00:28]} 40. f3 {[%emt 0:03:47]} Qg5 {[%emt 0:02:51]} 41. Qd3+ {[%emt 0:01:49]} f5 {[%emt 0:02:09]} 42. e4 {[%emt 0:00:37]} Qh4+ {[%emt 0:03:58]} 43. Kd1 {[%emt 0:01:58]} fxe4 {[%emt 0:00:17]} 44. fxe4 {[%emt 0:00:10]} Qh5+ {[%emt 0:00:02]} 45. Ke1 {[%emt 0:01:21]} Qe5 {[%emt 0:00:02]} 46. Kf1 {[%emt 0:00:55]} h5 {[%emt 0:01:18]} 47. Kg2 {[%emt 0:01:39]} Kh6 {[%emt 0:00:20]} 48. Kh3 {[%emt 0:00:58]} Qf4 {[%emt 0:02:16]} 49. Qa6+ {[%emt 0:01:55]} g6 {[%emt 0:03:20]} 50. Qe2 {[%emt 0:03:34]} h4 {[%emt 0:06:40]} 51. Kg2 {[%emt 0:01:09]} Qg3+ {[%emt 0:01:55]} 52. Kh1 {[%emt 0:00:34]} Qe5 {[%emt 0:00:05]} 53. Qf3 {[%emt 0:01:32]} g5 {[%emt 0:00:20]} 54. Qf8+ {[%emt 0:00:55]} Kh5 {[%emt 0:00:11]} 55. Qf3+ {[%emt 0:00:28]} g4 {[%emt 0:00:38]} 56. Qe2 {[%emt 0:01:32]} h3 {[%emt 0:00:17]} 57. Kg1 {[%emt 0:00:47]} Qg3+ {[%emt 0:00:10]} 58. Kf1 {[%emt 0:00:33]} Qf3+ {[%emt 0:00:06]} 59. Qxf3 {[%emt 0:00:27]} gxf3 {[%emt 0:00:02]} 60. Kg1 {[%emt 0:00:09]} Kg5 {[%emt 0:00:04]} 0-1

[Event "Marshall CC FIDE Premier April 2024"]
[Site "New York"]
[Date "2024.04.13"]
[Round "2.2"]
[White "Putnam, Liam"]
[Black "Kurup, Siddharth"]
[Result "1-0"]
[ECO "D37"]
[WhiteElo "2323"]
[BlackElo "1914"]
[Annotator "RC"]
[PlyCount "133"]
[EventDate "2024.02.02"]
[EventType "swiss"]
[EventCountry "USA"]
[SourceTitle "playchess.com"]
[Source "ChessBase"]
[SourceQuality "1"]
[TimeControl "5400+30"]

1. d4 {[%emt 0:10:43]} d5 {[%emt 0:00:11]} 2. c4 {[%emt 0:00:07]} e6 {[%emt 0:00:11]} 3. Nc3 {[%emt 0:00:51]} a6 {[%emt 0:00:10]} 4. cxd5 {[%emt 0:01:08]} exd5 {[%emt 0:00:09]} 5. Nf3 {[%emt 0:00:22]} Nf6 {[%emt 0:00:20]} 6. Bg5 {[%emt 0:01:02]} Be6 {[%emt 0:00:19]} 7. e3 {[%emt 0:03:10]} Nbd7 {[%emt 0:05:16]} 8. Bd3 {[%emt 0:01:25]} Bd6 {[%emt 0:01:09]} 9. O-O {[%emt 0:01:30]} c6 {[%emt 0:00:52]} 10. Qc2 {[%emt 0:07:39]} Qc7 {[%emt 0:01:01]} 11. Rfe1 {[%emt 0:21:10]} O-O {[%emt 0:03:02]} 12. Ne2 {[%emt 0:03:55]} Bg4 {[%emt 0:06:27]} 13. h3 {[%emt 0:01:07]} Bxf3 {[%emt 0:04:24]} 14. gxf3 {[%emt 0:00:04]} h6 {[%emt 0:01:10]} 15. Bh4 {[%emt 0:00:54]} Nh5 {[%emt 0:09:09]} 16. Kh1 {[%emt 0:01:05]} Kh8 {[%emt 0:05:05]} 17. Rg1 {[%emt 0:02:14]} Rae8 {[%emt 0:02:28]} 18. Rg2 {[%emt 0:06:21]} g5 {[%emt 0:00:51]} 19. Bxg5 {[%emt 0:04:22]} hxg5 {[%emt 0:00:13]} 20. Rxg5 {[%emt 0:00:02]} Nhf6 {[%emt 0:06:16]} 21. e4 {[%emt 0:03:45]} Rg8 {[%emt 0:08:21]} 22. Rf5 {[%emt 0:00:52]} Rg7 {[%emt 0:08:08]} 23. e5 {[%emt 0:03:44]} Bxe5 {[%emt 0:00:58]} 24. dxe5 {[%emt 0:00:06]} Rxe5 {[%emt 0:00:23]} 25. Re1 {[%emt 0:05:04]} Rxf5 {[%emt 0:03:04]} 26. Bxf5 {[%emt 0:00:06]} Qe5 {[%emt 0:00:25]} 27. f4 {[%emt 0:02:20]} Qe7 {[%emt 0:01:56]} 28. Qc3 {[%emt 0:01:52]} Ne4 {[%emt 0:03:37]} 29. Qe3 {[%emt 0:00:14]} Ndc5 {[%emt 0:02:22]} 30. Kh2 {[%emt 0:05:24]} Qf6 {[%emt 0:00:58]} 31. Nd4 {[%emt 0:03:52]} Nd6 {[%emt 0:08:52]} 32. Qe7 {[%emt 0:03:24]} Qxe7 {[%emt 0:04:27]} 33. Rxe7 {[%emt 0:00:05]} f6 {[%emt 0:00:44]} 34. Re3 {[%emt 0:00:18]} Nxf5 {[%emt 0:01:12]} 35. Nxf5 {[%emt 0:00:09]} Rd7 {[%emt 0:00:25]} 36. Nd4 {[%emt 0:00:51]} Ne4 {[%emt 0:02:15]} 37. f3 {[%emt 0:00:42]} Nd6 {[%emt 0:01:13]} 38. b4 {[%emt 0:01:31]} Kh7 {[%emt 0:01:37]} 39. a4 {[%emt 0:01:22]} Kg6 {[%emt 0:00:52]} 40. Re2 {[%emt 0:00:08]} Nc4 {[%emt 0:01:57]} 41. f5+ {[%emt 0:03:51]} Kh7 {[%emt 0:01:27]} 42. Ne6 {[%emt 0:00:30]} Rf7 {[%emt 0:00:22]} 43. a5 {[%emt 0:00:42]} Ne5 {[%emt 0:01:13]} 44. Re3 {[%emt 0:00:44]} Nc4 {[%emt 0:00:57]} 45. Re1 {[%emt 0:00:21]} Ne5 {[%emt 0:01:25]} 46. Kg3 {[%emt 0:00:08]} Nc4 {[%emt 0:01:44]} 47. Kf4 {[%emt 0:00:25]} Nd6 {[%emt 0:02:45]} 48. Rg1 {[%emt 0:00:34]} Nc4 {[%emt 0:00:15]} 49. h4 {[%emt 0:00:26]} Kh8 {[%emt 0:01:28]} 50. Nc5 {[%emt 0:01:29]} Nd6 {[%emt 0:00:39]} 51. Re1 {[%emt 0:00:22]} Kh7 {[%emt 0:00:30]} 52. Re6 {[%emt 0:00:14]} Nc4 {[%emt 0:00:21]} 53. Re8 {[%emt 0:00:12]} Nd6 {[%emt 0:00:37]} 54. Rd8 {[%emt 0:00:07]} Nc4 {[%emt 0:00:36]} 55. Rb8 {[%emt 0:00:57]} Nd6 {[%emt 0:00:08]} 56. Ne6 {[%emt 0:00:14]} Kh6 {[%emt 0:00:38]} 57. Rd8 {[%emt 0:00:35]} Nc4 {[%emt 0:00:07]} 58. Rh8+ {[%emt 0:00:07]} Rh7 {[%emt 0:00:05]} 59. Rf8 {[%emt 0:00:05]} Re7 {[%emt 0:01:33]} 60. Rxf6+ {[%emt 0:00:11]} Kh7 {[%emt 0:00:08]} 61. Rg6 {[%emt 0:00:15]} b6 {[%emt 0:00:20]} 62. Ng5+ {[%emt 0:00:25]} Kh8 {[%emt 0:00:03]} 63. f6 {[%emt 0:00:04]} Rb7 {[%emt 0:00:54]} 64. f7 {[%emt 0:00:06]} Rb8 {[%emt 0:00:14]} 65. Ne6 {[%emt 0:00:03]} Kh7 {[%emt 0:00:11]} 66. Kg5 {[%emt 0:00:03]} Ne5 {[%emt 0:00:40]} 67. Rh6# {[%emt 0:00:37]} 1-0

[Event "Marshall CC FIDE Premier April 2024"]
[Site "New York"]
[Date "2024.04.13"]
[Round "2.3"]
[White "Chen, Derek H"]
[Black "Ayyappan, Santhosh"]
[Result "0-1"]
[ECO "C84"]
[WhiteElo "2070"]
[BlackElo "1922"]
[Annotator "TA"]
[PlyCount "105"]
[EventDate "2024.02.02"]
[EventType "swiss"]
[EventCountry "USA"]
[SourceTitle "playchess.com"]
[Source "ChessBase"]
[SourceQuality "1"]
[TimeControl "5400+30"]

{[%evp 13,105,20,23,0,0,0,5,2,37,0,4,0,15,15,25,0,0,-10,-17,-34,-14,-13,-13,-17,-23,-15,92,104,92,97,86,91,100,104,94,96,128,125,98,112,98,100,85,77,85,0,0,0,0,2,6,3,7,0,0,0,0,0,0,0,0,0,0,0,0,0,0,0,0,0,0,0,0,0,0,0,0,0,0,0,0,-134,-142,-475,-444,-2552,-5097,-3696,-2471,-2453,-2439,-7288,-7136,-29997]} 1. e4 {[%emt 0:00:01]} e5 {[%emt 0:13:31]} 2. Nf3 {[%emt 0:00:34]} Nc6 {[%emt 0:00:25]} 3. Bb5 {[%emt 0:00:06][%cal Bf1b5,Bb5a4,Ba4b3,Bb3a2,Ba2d5][%mdl 32]} a6 {[%emt 0:00:55]} 4. Ba4 {[%emt 0:00:13]} Nf6 {[%emt 0:00:17]} 5. O-O {[%emt 0:00:05]} b5 {[%emt 0:00:13]} 6. Bb3 {[%emt 0:00:11]} Be7 {[%emt 0:00:10]} 7. d3 {[%emt 0:01:26]} d6 {[%emt 0:00:31]} 8. a3 {[%emt 0:01:48]} Na5 {[%emt 0:00:52]} 9. Ba2 {[%emt 0:00:04]} c5 {[%emt 0:00:39]} 10. Nc3 {[%emt 0:00:09] The position is equal.} O-O {[%emt 0:01:09]} 11. h3 {[%emt 0:03:13]} Nc6 {[%emt 0:01:12]} 12. Nd5 {[%emt 0:00:56]} Nxd5 {[%emt 0:01:25]} 13. Bxd5 {[%emt 0:00:14]} Qc7 {[%emt 0:01:18]} 14. Nh2 {[%emt 0:19:57]} Be6 {[%emt 0:01:50]} 15. f4 {[%emt 0:00:25]} exf4 {[%emt 0:01:43]} 16. Bxf4 {[%emt 0:00:11]} Bf6 {[%emt 0:00:42]} 17. c3 {[%emt 0:22:46]} Bxd5 {[%emt 0:00:12]} 18. exd5 {[%emt 0:00:01]} Ne7 {[%emt 0:00:13]} 19. Ng4 {[%emt 0:02:19] And now Nxf6+ would win.} Nxd5 {[%emt 0:04:04]} (19... Be5 $1 $11 {remains equal.}) 20. Qf3 $16 {[%emt 0:00:09]} Nxf4 {[%emt 0:00:04]} 21. Nxf6+ {[%emt 0:00:05]} gxf6 {[%emt 0:00:08]} 22. Qxf4 {[%emt 0:00:18][%cal Of4h6]} Rae8 {[%emt 0:01:02]} 23. Rf3 {[%emt 0:03:13][%mdl 1024] White has strong compensation.} Qe7 {[%emt 0:00:50]} 24. Raf1 {[%emt 0:03:26]} (24. Qxf6 $6 Qxf6 25. Rxf6 Re2 $14) 24... Qe5 {[%emt 0:01:42] [#]} 25. Qh4 $1 {[%emt 0:01:08]} ({Don't play} 25. Qxf6 Qxf6 26. Rxf6 Re6 $14) 25... f5 {[%emt 0:03:46]} 26. d4 {[%emt 0:09:21]} cxd4 {[%emt 0:03:05]} 27. cxd4 {[%emt 0:00:02]} Qe7 {[%emt 0:01:12]} 28. Qh6 {[%emt 0:03:00] White wants to mate with Rg3+.} Kh8 {[%emt 0:03:04]} 29. Rg3 {[%emt 0:00:35]} (29. Rxf5 $16 {White wants to play R1f2.} a5 30. R1f2 (30. Rxb5 Rg8 $18)) 29... Rg8 $11 {[%emt 0:00:07]} 30. Rxg8+ {[%emt 0:02:46]} Rxg8 {[%emt 0:00:46]} 31. Rxf5 {[%emt 0:00:29][%mdl 4096] Endgame. KQR-KQR} Rg6 {[%emt 0:00:38]} 32. Qf4 {[%emt 0:01:41]} Kg7 {[%emt 0:02:13]} 33. h4 {[%emt 0:00:58]} h6 {[%emt 0:00:53]} 34. Qf2 {[%emt 0:03:23]} Rg4 {[%emt 0:02:46]} 35. Rf4 {[%emt 0:00:58]} Qe6 {[%emt 0:02:42]} 36. Rxg4+ {[%emt 0:01:33]} Qxg4 {[%emt 0:00:03] KQ-KQ} 37. Kh2 {[%emt 0:00:06]} Qe4 {[%emt 0:00:46]} 38. g3 {[%emt 0:01:16]} f5 {[%emt 0:00:33]} 39. Qd2 {[%emt 0:01:02]} Kg6 {[%emt 0:00:54]} 40. Qf4 {[%emt 0:01:30]} d5 {[%emt 0:03:42] aiming for ...Kh5.} 41. Qd2 $1 {[%emt 0:04:34]} Kh5 {[%emt 0:00:39]} 42. Qd1+ {[%emt 0:00:48]} Qg4 {[%emt 0:00:42]} 43. Qe1 {[%emt 0:00:06]} Qe4 $1 {[%emt 0:00:33]} 44. Qd1+ {[%emt 0:00:02]} Kg6 {[%emt 0:00:08]} 45. Qd2 {[%emt 0:00:26]} Kh7 {[%emt 0:00:56]} (45... Kh5 $5 46. Qd1+ $8 $15) 46. Qf4 {[%emt 0:01:00]} Kg7 {[%emt 0:00:35]} 47. Qc7+ {[%emt 0:01:40]} (47. Qd6 $11 {keeps the balance.}) 47... Kg6 $17 {[%emt 0:00:11][%cal Og6h5]} 48. Qc3 $2 {[%emt 0:06:44][%mdl 8192] White does not recover from this.} (48. Qc1 $17) 48... Kh5 $19 {[%emt 0:01:14] Black is clearly winning.} 49. Qd2 {[%emt 0:00:05] Prevents Qe2+} (49. Kg1 $142) 49... Kg4 {[%emt 0:01:00]} 50. Qd1+ {[%emt 0:00:42]} Qf3 {[%emt 0:00:07]} 51. Qe1 {[%emt 0:00:01] [#]} a5 $1 {[%emt 0:00:51][%mdl 512]} 52. Qg1 {[%emt 0:04:25]} (52. b3 Qxb3) 52... Qe2+ {[%emt 0:01:07]} 53. Kh1 {[%emt 0:00:22] Weighted Error Value: White=0.51/Black=0.06 (flawless) .  Loses game:     	White=1     	---        Mistake:       	White=3     	Black=1      Inaccurate:     	White=1     	Black=2      OK:         	White=15    	Black=17     Best:        	White=2     	Black=4      Strong:       	White=2     	Black=1} 0-1

[Event "Marshall CC FIDE Premier April 2024"]
[Site "New York"]
[Date "2024.04.13"]
[Round "2.4"]
[White "Subervi, Jonathan Sigfredo"]
[Black "Bonin, Jay"]
[Result "0-1"]
[ECO "C40"]
[WhiteElo "2043"]
[BlackElo "2146"]
[Annotator "TA"]
[PlyCount "146"]
[EventDate "2024.02.02"]
[EventType "swiss"]
[EventCountry "USA"]
[SourceTitle "playchess.com"]
[Source "ChessBase"]
[SourceQuality "1"]
[TimeControl "5400+30"]

{[%evp 9,146,54,73,60,83,51,80,80,80,82,113,111,127,137,168,100,97,89,97,90,114,115,164,96,102,89,91,86,62,48,56,55,46,50,60,60,53,27,29,-34,-27,-42,0,0,0,0,0,0,0,0,-3,0,0,0,0,-24,-17,-8,-9,-10,-8,-11,0,-20,-16,-21,0,-98,-104,-197,-185,-202,-216,-214,-201,-197,-204,-188,0,-658,-131,-160,-131,-158,-164,-124,-125,-125,-24,-8,0,-297,-289,-295,0,-269,-191,-143,-38,-37,-24,-37,-24,-24,0,0,0,-29974,-29975,-29975,-29976,-29981,-29973,-29973,-29974,-29973,-29975,-29974,-29976,-29976,-29977,-29977,-29978,-29978,-29979,-29979,-29980,-29985,-29986,-29986,-29987,-29987,-29988,-29988,-29989,-29989,-29990,-29994,-5097]} 1. e4 {[%emt 0:26:27]} e5 {[%emt 0:00:13]} 2. Nf3 {[%emt 0:00:19]} Qe7 {[%emt 1:31:17]} 3. Bc4 {[%emt 0:00:15]} g6 {[%emt 0:00:00]} 4. O-O {[%emt 0:01:16]} Bg7 {[%emt 0:00:00]} 5. d4 {[%emt 0:05:41]} d6 $1 {[%emt 0:00:00]} 6. dxe5 {[%emt 0:00:42]} dxe5 {[%emt 0:00:00]} 7. b3 {[%emt 0:03:30]} Bg4 {[%emt 0:00:00]} 8. h3 {[%emt 0:00:23] White is better.} Bxf3 {[%emt 0:00:00]} 9. Qxf3 {[%emt 0:00:09]} Nd7 {[%emt 0:00:00][%cal Bb8d7,Bd7b6,Bb6c8,Bc8d6][%mdl 32] Black is weak on the light squares} 10. Rd1 {[%emt 0:03:58]} Rd8 {[%emt 0:00:00]} 11. a4 {[%emt 0:06:14]} Qf6 {[%emt 0:00:00]} 12. Qe3 {[%emt 0:07:33]} (12. Qd3 $18) 12... Nb6 $16 {[%emt 0:00:00]} 13. Rxd8+ {[%emt 0:00:24]} Qxd8 {[%emt 0:00:00]} 14. Bd3 {[%emt 0:07:22] A strong pair of Bishops.} Bh6 {[%emt 0:00:00]} 15. Qg3 {[%emt 0:07:38]} f6 {[%emt 0:00:00]} (15... Qd4 $16 {was worth a try.} 16. c3 Qd6) 16. Bxh6 {[%emt 0:02:44]} (16. Bb2 $18) 16... Nxh6 {[%emt 0:00:00]} 17. a5 {[%emt 0:01:56]} Nc8 {[%emt 0:00:00]} 18. a6 {[%emt 0:01:10]} b6 {[%emt 0:00:00]} 19. Bb5+ {[%emt 0:02:00]} Kf8 {[%emt 0:00:00]} 20. Nc3 {[%emt 0:00:24] Inhibits Qd1+.} Kg7 {[%emt 0:00:00]} 21. Rd1 {[%emt 0:00:03]} Nd6 {[%emt 0:00:00]} 22. Bc6 {[%emt 0:01:59]} Nhf7 {[%emt 0:00:00]} 23. Nb5 {[%emt 0:06:30]} Qc8 {[%emt 0:00:00]} 24. Ra1 {[%emt 0:10:15]} (24. Nxa7 $2 Qxa6 25. Qc3 Qxa7 $19) (24. c4 $11) 24... Nxb5 $15 {[%emt 0:00:00]} 25. Bxb5 {[%emt 0:00:02]} c6 {[%emt 0:00:00]} 26. Be2 {[%emt 0:00:49]} Rd8 {[%emt 0:00:00]} 27. Qe3 {[%emt 0:00:24]} Qc7 {[%emt 0:00:00]} 28. h4 {[%emt 0:00:34]} Qd6 {[%emt 0:00:00]} 29. Rd1 {[%emt 0:00:25]} Qc5 {[%emt 0:00:00]} 30. Qxc5 {[%emt 0:01:18]} Rxd1+ {[%emt 0:00:00]} 31. Bxd1 {[%emt 0:00:14]} bxc5 $11 {[%emt 0:00:00][%mdl 4096] Endgame. KB-KN} 32. Bg4 {[%emt 0:03:04]} Nd6 {[%emt 0:00:00]} 33. Bd7 {[%emt 0:00:25]} Nxe4 {[%emt 0:00:00]} 34. Bxc6 {[%emt 0:00:01]} Nd6 {[%emt 0:00:00]} 35. Kf1 {[%emt 0:00:20]} Kf8 {[%emt 0:00:00]} 36. Ke2 {[%emt 0:00:29]} Ke7 {[%emt 0:00:00]} 37. Bd5 {[%emt 0:00:15]} Kd8 {[%emt 0:00:00]} 38. c4 {[%emt 0:01:27]} (38. g4 $11 {keeps the balance.}) 38... Kc7 $17 {[%emt 0:00:00]} 39. b4 {[%emt 0:00:32]} cxb4 $19 {[%emt 0:00:00]} 40. c5 {[%emt 0:00:01]} Nf5 {[%emt 0:00:00]} 41. g3 {[%emt 0:00:27]} Nd4+ {[%emt 0:00:00]} 42. Kd3 {[%emt 0:00:02]} b3 {[%emt 0:00:00]} 43. Kc3 {[%emt 0:00:09]} g5 $2 {[%emt 0:00:00]} (43... Kd7 $19 {aiming for ...Ne6.} 44. Bb7 Ne6 45. c6+ Kd6 46. Kxb3 Nd4+ 47. Kc4 Nxc6) 44. f4 $2 {[%emt 0:01:18][%mdl 8192]} (44. hxg5 $11 fxg5 45. g4) 44... gxf4 $2 {[%emt 0:00:00]} (44... exf4 $19 {is more deadly.} 45. hxg5 (45. Kxd4 b2 $19) 45... Ne2+ 46. Kb2 fxg5 (46... Nxg3 $2 47. gxf6 Kd8 48. c6 $18)) 45. gxf4 $17 {[%emt 0:00:01]} Ne2+ {[%emt 0:00:00]} 46. Kxb3 {[%emt 0:00:02]} Nxf4 {[%emt 0:00:00]} (46... exf4 47. Kc4 $15) 47. Be4 {[%emt 0:00:30]} h6 {[%emt 0:00:00] And now ...Ne6 would win.} 48. Kc4 {[%emt 0:00:07]} Ne2 {[%emt 0:00:00]} (48... Kd8 $17 {Threatens to win with ...Ne6.} 49. Bh7 Ne6) 49. Bg6 {[%emt 0:00:25]} Nf4 $2 {[%emt 0:00:00][%mdl 8192]} (49... Nd4 $11) 50. Be4 $19 {[%emt 0:00:16]} Kd7 $1 {[%emt 0:00:00]} 51. Bf5+ {[%emt 0:00:11]} Kc6 $2 {[%emt 0:00:00]} (51... Kd8 $1 $19 {White must now prevent ...Ng2.} 52. Be4 Kc7) 52. Be4+ $2 {[%emt 0:00:03][%mdl 8192]} (52. Bc2 $1 $11 {and White stays safe.}) 52... Kc7 {[%emt 0:00:00]} 53. Kb5 {[%emt 0:01:28] [#]} Ne2 {[%emt 0:00:00]} ({Black should try} 53... Ne6 $1 $17 {[%cal Of6f5] Hoping for ...f5!} 54. Kc4 Kd7) 54. Kc4 $15 {[%emt 0:00:04]} Ng3 {[%emt 0:00:00] Against Bf5} 55. Bg6 {[%emt 0:01:40]} f5 {[%emt 0:00:00] Strongly threatening ...f4.} 56. Kd5 {[%emt 0:00:11]} f4 {[%emt 0:00:00]} 57. Kxe5 {[%emt 0:00:39]} (57. Bd3 $5) 57... f3 {[%emt 0:00:00]} 58. Kf6 $2 {[%emt 0:00:54][%mdl 8192]} (58. Bd3 $11) 58... f2 {[%emt 0:00:00] Black mates.} 59. Bd3 {[%emt 0:00:10] [#]} Kc6 $1 {[%emt 0:00:00]} (59... f1=R+ 60. Bxf1 Nxf1 61. Kg6 $11) 60. Kg6 {[%emt 0:00:11]} h5 {[%emt 0:00:00]} (60... f1=R 61. Bxf1 Nxf1 62. h5 $11) 61. Kg5 {[%emt 0:00:13]} Kxc5 {[%emt 0:00:00]} ({And not} 61... f1=R 62. Bxf1 Nxf1 63. Kxh5 $11) 62. Kf4 {[%emt 0:01:58]} f1=Q+ {[%emt 0:00:00]} ({Less strong is} 62... f1=R+ 63. Kxg3 Rg1+ 64. Kh3 $17) 63. Bxf1 {[%emt 0:00:12]} Nxf1 {[%emt 0:00:00] KN-KPP} 64. Kg5 {[%emt 0:00:01]} Ng3 {[%emt 0:00:00]} 65. Kf4 {[%emt 0:00:02] [#]} Kb6 $1 {[%emt 0:00:00]} 66. Kxg3 {[%emt 0:00:30]} Kxa6 {[%emt 0:00:00] KPP-KP} 67. Kf4 {[%emt 0:00:22]} Kb5 {[%emt 0:00:00]} 68. Kg5 {[%emt 0:00:17]} a5 {[%emt 0:00:00]} 69. Kxh5 {[%emt 0:00:11]} a4 {[%emt 0:00:00]} 70. Kg6 {[%emt 0:00:28]} a3 {[%emt 0:00:00]} 71. h5 {[%emt 0:00:28]} a2 {[%emt 0:00:00]} 72. h6 {[%emt 0:00:11]} a1=Q {[%emt 0:00:00]} ({Not} 72... a1=B 73. h7 $11) 73. Kh7 {[%emt 0:00:16]} Qf6 {[%emt 0:00:00] Black used his chance.   Weighted Error Value: White=0.44/Black=0.36.  Loses game:     	White=3     	---        Missed win:     	---       	Black=3      Mistake:       	White=5     	Black=4      Inaccurate:     	White=2     	Black=3      OK:         	White=20    	Black=15     Best:        	White=5     	Black=6      Strong:       	---       	Black=1} 0-1